bitfinex-derivatives/quotes_ETHF0:USTF0_20250430
["timestamp","ask_amount","ask_price","bid_price","bid_amount"]
[1746044123458,1e-05,1809.6,1809.5,9.29978]
[1746044123952,0.88741,1810.0,1809.9,1.10497]
[1746044124162,4.136,1810.6,1809.9,53.1438]
[1746044124163,1.10462,1810.5,1809.9,53.1438]
[1746044124354,1.10462,1810.5,1810.4,4.31242]
[1746044124553,1.10462,1810.5,1810.3,3.2078]
[1746044124757,1.10471,1810.4,1810.1,3.2078]
[1746044124958,2.76148,1810.6,1810.2,1.10474]
[1746044125162,1.10468,1810.4,1810.3,1.09811]
[1746044125661,1.10468,1810.4,1810.3,1.10473]
[1746044125862,1.10473,1810.3,1810.2,1.10474]
[1746044126061,1.10479,1810.2,1810.1,3.2078]
[1746044126361,1.10488,1810.1,1810.0,1.09827]
[1746044126559,1.10491,1810.0,1809.9,40.8]
[1746044126758,5.96978,1810.2,1809.8,1.10502]
[1746044126963,1.10503,1809.8,1809.7,3.2078]
[1746044127158,1.10516,1809.6,1809.5,44.0078]
[1746044127358,1.10516,1809.6,1809.5,45.11302]
[1746044127560,1.10847,1809.6,1809.5,45.10971]
[1746044128064,1.10847,1809.6,1809.5,4.30971]
[1746044128465,1.10847,1809.6,1809.5,3.20449]
[1746044128666,1.11178,1809.6,1809.5,4.3064]
[1746044128871,1.11178,1809.6,1809.5,3.20118]
[1746044129164,1.10535,1809.3,1809.2,1.10536]
[1746044129566,7.09235,1809.5,1809.2,1.1054]
[1746044129767,1.10539,1809.3,1809.1,45.10991]
[1746044129955,4.3293,1809.5,1809.1,44.00449]
[1746044130159,5.43453,1809.5,1809.1,46.76812]
[1746044130358,5.43453,1809.5,1809.3,1.10531]
[1746044130559,1.10533,1809.4,1809.2,3.33959]
[1746044130860,1.10538,1809.3,1809.2,1.10209]
[1746044131055,1.1054,1809.2,1809.1,3.20449]
[1746044132065,3.364,1809.2,1809.1,3.20118]
[1746044132862,8.364,1809.2,1809.1,3.20118]
[1746044133060,1.10561,1808.9,1808.8,1.10565]
[1746044133262,1.1057,1808.8,1808.7,1.10568]
[1746044133466,1.1057,1808.8,1808.7,1.10571]
[1746044134167,3.2406,1808.8,1808.7,1.10571]
[1746044134563,3.2406,1808.8,1808.7,1.1024]
[1746044134764,1.10571,1808.7,1808.6,41.90577]
[1746044135073,1.10577,1808.6,1808.5,3.35708]
[1746044135273,3.24065,1808.7,1808.6,1.10577]
[1746044135567,1.10565,1808.9,1808.8,1.10565]
[1746044135764,3.24055,1808.9,1808.8,1.10234]
[1746044136169,1.10565,1808.8,1808.7,3.16997]
[1746044136370,3.24055,1808.8,1808.7,2.0643]
[1746044136577,3.24055,1808.8,1808.7,3.17001]
[1746044136867,3.24055,1808.8,1808.7,2.06099]
[1746044137755,3.24055,1808.8,1808.7,3.1667]
[1746044138258,3.24055,1808.8,1808.7,3.16339]
[1746044138463,3.24055,1808.8,1808.7,2.05768]
[1746044139172,1.10571,1808.7,1808.6,41.90572]
[1746044139475,3.23381,1808.7,1808.6,1.10572]
[1746044139969,3.2078,1808.9,1808.7,1.10567]
[1746044140169,3.36081,1808.8,1808.7,1.10567]
[1746044140472,3.36081,1808.8,1808.7,1.10236]
[1746044140665,2.2551,1808.8,1808.7,1.10236]
[1746044140970,5.50537,1809.0,1808.9,1.10558]
[1746044141176,1.10565,1808.9,1808.8,1.10562]
[1746044141372,3.36075,1808.9,1808.8,1.10562]
[1746044141765,4.3998,1809.0,1808.9,1.10553]
[1746044141766,1.10557,1809.0,1808.9,1.10553]
[1746044141965,3.36067,1809.0,1808.9,1.10553]
[1746044143363,1.10565,1808.9,1808.8,1.10562]
[1746044143565,3.37475,1808.9,1808.8,1.10562]
[1746044144475,2.2691,1808.9,1808.8,1.10562]
[1746044144863,3.37468,1808.9,1808.8,1.10562]
[1746044145366,1.10571,1808.7,1808.6,40.8]
[1746044145567,1.10576,1808.7,1808.6,1.10575]
[1746044145762,1.10577,1808.6,1808.5,6.52308]
[1746044145965,1.10577,1808.6,1808.5,47.32308]
[1746044146863,2.2691,1808.7,1808.6,1.10577]
[1746044147077,1.10577,1808.6,1808.5,47.32308]
[1746044147275,1.10577,1808.6,1808.5,44.11528]
[1746044147476,1.10577,1808.6,1808.5,2.2095]
[1746044147774,1.10577,1808.6,1808.5,3.31533]
[1746044147972,2.76458,1808.5,1808.0,3.2078]
[1746044148274,1.10616,1808.0,1807.7,4.3788]
[1746044148464,1.10626,1807.8,1807.7,2.1439]
[1746044148675,1.10626,1807.8,1807.6,7.01891619]
[1746044148875,3.39372,1807.7,1807.6,1.10638]
[1746044149175,3.39372,1807.7,1807.6,40.8]
[1746044149877,2.2874,1807.7,1807.6,1.10638]
[1746044150274,3.39372,1807.7,1807.6,1.10638]
[1746044150777,1.10638,1807.6,1807.5,3.25032]
[1746044150978,3.41838,1807.6,1807.5,3.25032]
[1746044151274,1.10631,1807.8,1807.5,2.1439]
[1746044151471,3.41825,1807.9,1807.8,1.10626]
[1746044151865,2.312,1807.9,1807.8,1.10626]
[1746044152073,3.33182,1808.2,1808.1,1.10607]
[1746044152277,1.10608,1808.1,1808.0,1.10608]
[1746044152476,2.3106,1808.1,1808.0,1.10608]
[1746044152774,2.3106,1808.1,1808.0,1.10613]
[1746044153367,2.3106,1808.1,1808.0,41.90613]
[1746044153577,3.41667,1808.1,1808.0,41.90613]
[1746044153878,3.41667,1808.1,1808.0,40.8]
[1746044154077,1.10613,1808.0,1807.9,1.10617]
[1746044154276,3.41673,1808.0,1807.9,1.10617]
[1746044154669,2.3106,1808.0,1807.9,1.10617]
[1746044155575,2.3106,1808.0,1807.9,3.32187]
[1746044155779,8.65165,1808.2,1808.1,1.10607]
[1746044156076,1.10617,1808.0,1807.8,45.11402]
[1746044156275,1.1062,1807.9,1807.8,45.11402]
[1746044156476,1.10618,1808.0,1807.9,1.1062]
[1746044156678,1.1062,1807.9,1807.8,45.11404]
[1746044156878,1.1062,1807.9,1807.8,44.0078]
[1746044156879,3.2182,1807.9,1807.8,44.0078]
[1746044157079,1.10611,1808.1,1807.8,3.2078]
[1746044157273,3.21811,1808.1,1808.0,1.10611]
[1746044157474,1.10613,1808.0,1807.9,3.32186]
[1746044157674,3.21813,1808.0,1807.9,3.32186]
[1746044157874,5.24101,1808.3,1808.2,1.10601]
[1746044158175,1.10604,1808.2,1808.1,1.10604]
[1746044158371,2.0869,1808.4,1808.3,1.10595]
[1746044158677,5.4387,1808.4,1808.3,1.10595]
[1746044159078,1.10597,1808.3,1808.2,1.10597]
[1746044159277,1.10601,1808.2,1808.1,3.39952]
[1746044159473,2.2459,1808.3,1808.2,1.10601]
[1746044159681,1.10601,1808.2,1807.9,2.1101]
[1746044159875,1.10601,1808.2,1808.0,1.10613]
[1746044159876,2.2459,1808.1,1808.0,1.10613]
[1746044160073,3.35197,1808.1,1808.0,1.10613]
[1746044160877,2.2459,1808.1,1808.0,1.10613]
[1746044161185,3.35197,1808.1,1808.0,1.10613]
[1746044161685,3.35197,1808.1,1807.9,1.10616]
[1746044161686,1.10614,1808.0,1807.9,1.10616]
[1746044161880,2.1928,1808.0,1807.9,1.10616]
[1746044162080,3.29893,1808.0,1807.9,1.10616]
[1746044162279,1.1062,1807.9,1807.8,6.60754]
[1746044162479,3.299,1807.9,1807.8,4.31404]
[1746044162979,2.1928,1807.9,1807.8,1.10624]
[1746044163179,8.1661,1807.9,1807.5,3.2078]
[1746044163382,1.10638,1807.6,1807.5,3.2078]
[1746044164482,3.29917,1807.7,1807.6,1.10638]
[1746044164677,2.1928,1807.7,1807.6,1.10638]
[1746044164882,2.1928,1807.7,1807.6,3.39378]
[1746044165786,4.136,1807.8,1807.7,1.10632]
[1746044165983,2.2834,1807.9,1807.8,1.10626]
[1746044166287,3.2078,1808.0,1807.9,1.1062]
[1746044166486,2.2411,1808.3,1808.0,2.76534]
[1746044166685,4.136,1808.4,1808.3,1.10595]
[1746044166886,5.24189,1808.4,1808.3,1.10595]
[1746044167076,4.136,1808.4,1808.3,1.10595]
[1746044167986,6.2918,1808.4,1808.3,1.10595]
[1746044168385,9.5849,1808.7,1808.2,2.76504]
[1746044168586,4.136,1808.9,1808.5,3.2078]
[1746044168781,1.10565,1808.8,1808.7,1.10568]
[1746044168987,1.10565,1808.8,1808.7,41.90568]
[1746044169181,2.1558,1808.8,1808.7,41.90568]
[1746044169382,3.26145,1808.8,1808.7,41.90568]
[1746044169582,2.1558,1808.8,1808.7,41.90568]
[1746044170182,3.26145,1808.8,1808.7,41.90568]
[1746044170384,2.1558,1808.8,1808.7,41.90568]
[1746044170788,2.1073,1809.0,1808.8,1.10561]
[1746044171080,1.10561,1808.9,1808.8,2.1273]
[1746044171278,1.10565,1808.8,1808.7,40.8]
[1746044171884,3.21295,1808.8,1808.7,40.8]
[1746044172083,1.10571,1808.7,1808.6,1.10572]
[1746044172283,3.21301,1808.7,1808.6,1.10572]
[1746044172487,3.21301,1808.7,1808.6,40.8]
[1746044172687,9.00772,1808.7,1808.3,3.2078]
[1746044172991,8.28123,1808.6,1808.2,2.1273]
[1746044173188,1.10594,1808.4,1808.3,1.10594]
[1746044173387,2.1073,1808.5,1808.4,1.10589]
[1746044173691,3.21313,1808.5,1808.4,1.10589]
[1746044173991,1.10601,1808.3,1808.2,1.10599]
[1746044174187,1.10601,1808.2,1808.0,3.27101]
[1746044174389,1.10613,1808.0,1807.9,1.10617]
[1746044174589,1.10625,1807.9,1807.8,1.10625]
[1746044174780,1.10626,1807.8,1807.7,41.90627]
[1746044174983,3.23294,1807.9,1807.8,1.10626]
[1746044175387,3.23295,1807.9,1807.8,1.10626]
[1746044175589,1.10628,1807.8,1807.7,1.10629]
[1746044175884,2.1267,1807.8,1807.7,1.10629]
[1746044176391,1.10632,1807.7,1807.6,2.311]
[1746044176590,1.10632,1807.7,1807.6,3.41738]
[1746044176790,1.10638,1807.6,1807.5,1.10639]
[1746044177784,1.10637,1807.7,1807.6,1.10636]
[1746044177979,1.10644,1807.5,1807.4,6.59426]
[1746044178185,1.10641,1807.6,1807.5,1.10638]
[1746044178386,3.30897,1807.7,1807.6,1.10638]
[1746044178697,1.10638,1807.6,1807.5,3.38638]
[1746044178885,3.30898,1807.6,1807.5,3.38638]
[1746044179087,2.2026,1807.6,1807.5,3.38638]
[1746044179288,3.30898,1807.6,1807.5,3.38638]
[1746044179482,1.10648,1807.5,1807.4,1.10648]
[1746044179686,2.2549,1807.5,1807.3,7.6593]
[1746044179890,2.2549,1807.5,1807.4,1.1065]
[1746044180191,4.129,1807.8,1807.3,8.12602]
[1746044180389,2.2549,1807.7,1807.6,1.10638]
[1746044180582,3.36125,1807.7,1807.6,1.10638]
[1746044181084,2.2549,1807.7,1807.6,1.10638]
[1746044181792,2.2549,1807.7,1807.6,3.25828]
[1746044182095,3.36122,1807.7,1807.6,3.25828]
[1746044182288,1.10644,1807.6,1807.5,1.10642]
[1746044182489,3.24664,1807.6,1807.5,1.10642]
[1746044183495,3.24664,1807.6,1807.5,41.90642]
[1746044183695,6.45444,1807.6,1807.5,1.10642]
[1746044184087,3.24664,1807.6,1807.5,1.10642]
[1746044184396,1.10644,1807.5,1807.4,40.8]
[1746044184695,1.10644,1807.5,1806.3,7.01891619]
[1746044184696,2.76718,1806.9,1806.3,7.01891619]
[1746044184998,2.1402,1806.8,1806.4,42.9487]
[1746044185191,1.10705,1806.6,1806.5,1.10704]
[1746044185490,4.31477,1806.7,1806.6,1.10699]
[1746044185698,2.1134,1806.7,1806.6,1.10699]
[1746044185891,3.2078,1807.1,1806.6,8.2078]
[1746044186092,2.1134,1807.3,1807.2,1.10662]
[1746044186394,7.3378,1807.7,1807.3,2.1411]
[1746044186593,1.10648,1807.5,1807.4,1.10647]
[1746044186794,3.21981,1807.6,1807.5,1.10644]
[1746044186999,8.44417,1807.7,1807.6,1.10638]
[1746044187193,3.2197,1807.8,1807.7,1.10632]
[1746044187596,5.3212,1807.8,1807.4,5.3489]
[1746044187790,2.7658,1807.7,1807.1,3.2078]
[1746044188100,1.10654,1807.4,1807.3,1.10654]
[1746044188701,1.10656,1807.3,1807.2,3.24768]
[1746044188900,1.10656,1807.3,1807.2,2.1411]
[1746044189101,1.10656,1807.3,1807.2,3.24772]
[1746044189399,6.89612,1807.5,1807.1,4.31444]
[1746044189400,1.10662,1807.2,1807.1,4.31444]
[1746044189893,2.76653,1807.3,1806.9,1.10676]
[1746044190090,2.3129,1807.1,1807.0,1.10675]
[1746044190596,1.10661,1807.3,1806.9,5.53396]
[1746044190896,1.10661,1807.3,1806.9,5.05318]
[1746044191199,3.41946,1807.3,1807.2,1.10662]
[1746044191899,2.3129,1807.3,1807.2,1.10662]
[1746044192902,2.3129,1807.3,1807.1,2.2995]
[1746044193105,1.10662,1807.2,1807.1,2.2995]
[1746044193404,1.10662,1807.2,1807.1,3.40619]
[1746044193599,1.10662,1807.2,1807.1,2.2995]
[1746044193804,1.10685,1806.9,1806.7,2.1349]
[1746044194003,1.10684,1806.9,1806.8,1.10685]
[1746044194203,1.10687,1806.8,1806.7,2.2995]
[1746044194506,1.10687,1806.8,1806.7,1.10693]
[1746044194696,1.10693,1806.7,1806.6,3.40644]
[1746044194896,1.10693,1806.7,1806.6,2.2995]
[1746044195096,1.10699,1806.6,1806.5,3.2078]
[1746044195292,1.10699,1806.6,1806.5,4.31485]
[1746044195601,1.10699,1806.6,1806.5,4.31481]
[1746044195798,2.1429,1806.7,1806.4,42.9154]
[1746044196005,4.31431,1807.4,1806.8,2.76708]
[1746044196203,4.13,1807.5,1807.4,1.1065]
[1746044196396,2.1429,1807.6,1807.5,1.10644]
[1746044196805,2.1429,1807.6,1807.4,1.10648]
[1746044197102,3.24932,1807.6,1807.4,1.10649]
[1746044197298,2.1429,1807.6,1807.5,1.10644]
[1746044197705,6.457,1807.8,1807.6,1.10633]
[1746044198205,5.3507,1807.8,1807.3,8.0896]
[1746044198503,6.45698,1807.8,1807.6,1.10633]
[1746044198696,6.45696,1807.8,1807.6,1.10633]
[1746044199601,5.3507,1807.8,1807.6,1.10633]
[1746044200101,5.3507,1807.8,1807.4,5.07341]
[1746044200303,5.3507,1807.8,1807.7,1.10632]
[1746044201805,1.10632,1807.7,1807.6,40.8]
[1746044202003,1.10645,1807.5,1807.4,1.10648]
[1746044202298,2.2991,1807.7,1807.2,2.76656]
[1746044202508,1.10647,1807.5,1807.4,1.10649]
[1746044202904,3.40557,1807.5,1807.4,1.10649]
[1746044203099,1.10652,1807.4,1807.3,1.10653]
[1746044203293,3.40562,1807.4,1807.3,1.10653]
[1746044203505,2.2991,1807.4,1807.1,5.3039]
[1746044203707,1.10659,1807.3,1807.2,1.1066]
[1746044203902,1.10662,1807.3,1807.2,1.10662]
[1746044204100,1.10665,1807.2,1807.1,1.10663]
[1746044204398,1.10683,1806.9,1806.8,1.10684]
[1746044204603,9.73293,1807.1,1806.7,2.76732]
[1746044204805,8.6262,1807.1,1807.0,1.10675]
[1746044205002,1.10675,1807.0,1806.9,40.8]
[1746044205307,1.10681,1806.9,1806.8,1.10683]
[1746044205606,2.3109,1807.0,1806.7,41.90692]
[1746044205800,2.3109,1806.8,1806.3,3.2078]
[1746044206001,1.10708,1806.5,1806.4,1.10709]
[1746044206211,5.23697,1806.7,1806.6,1.10699]
[1746044206401,1.107,1806.6,1806.5,1.10701]
[1746044206904,5.23698,1806.7,1806.6,1.10699]
[1746044207306,5.23698,1806.7,1806.5,1.10701]
[1746044207307,1.10699,1806.6,1806.5,1.10701]
[1746044207905,5.23695,1806.7,1806.6,1.10699]
[1746044208212,1.10702,1806.6,1806.5,1.10702]
[1746044208410,1.10705,1806.5,1806.4,3.30877]
[1746044208714,1.10705,1806.5,1806.4,1.10707]
[1746044209010,1.10711,1806.4,1806.3,4.31492]
[1746044209208,2.2751,1806.6,1806.1,4.96993]
[1746044209209,1.1071,1806.5,1806.4,1.1071]
[1746044209810,1.10713,1806.4,1806.3,1.10713]
[1746044210111,5.04259,1806.6,1805.9,9.11284]
[1746044210308,1.10722,1806.3,1806.2,1.10722]
[1746044210517,1.10715,1806.4,1806.3,1.10715]
[1746044210705,2.3185,1806.5,1806.2,1.1072]
[1746044210706,1.10719,1806.3,1806.2,1.1072]
[1746044211013,1.10719,1806.3,1805.9,3.2078]
[1746044211014,1.10736,1806.0,1805.9,3.2078]
[1746044211212,1.10736,1806.0,1805.9,4.31522]
[1746044211409,1.10724,1806.2,1806.1,1.10728]
[1746044212111,1.10736,1806.0,1805.9,4.31518]
[1746044212306,1.10736,1806.0,1805.9,1.10738]
[1746044212512,1.10708,1806.5,1806.4,1.10708]
[1746044212710,1.10714,1806.4,1806.3,1.10713]
[1746044212914,1.10718,1806.3,1806.2,3.42619]
[1746044213913,1.10714,1806.4,1806.3,1.10718]
[1746044214115,1.10718,1806.3,1806.2,3.4262]
[1746044214503,1.10718,1806.3,1806.2,1.1072]
[1746044215015,1.10724,1806.2,1806.1,40.8]
[1746044215415,1.10722,1806.3,1806.2,1.10723]
[1746044216018,4.31496,1806.4,1806.3,1.10718]
[1746044216711,1.10711,1806.5,1806.2,2.1123]
[1746044216919,1.10714,1806.4,1806.3,1.10713]
[1746044218906,1.10714,1806.4,1806.3,1.10712]
[1746044219410,1.10723,1806.3,1806.2,1.10721]
[1746044219610,9.6069,1806.6,1806.2,2.7681]
[1746044219815,1.10707,1806.5,1806.4,1.10706]
[1746044220014,1.10711,1806.4,1806.3,3.40094]
[1746044220410,1.10724,1806.2,1806.1,46.2912]
[1746044220718,1.10723,1806.3,1806.1,48.585]
[1746044220921,1.10723,1806.3,1806.2,1.1072]
[1746044221121,1.10723,1806.3,1806.2,3.401]
[1746044221319,1.10717,1806.4,1806.3,1.10715]
[1746044221714,1.10716,1806.4,1806.3,1.10714]
[1746044222018,1.10707,1806.5,1806.4,1.10711]
[1746044222319,1.10718,1806.4,1806.3,1.10716]
[1746044222816,5.4288,1806.6,1806.5,1.10705]
[1746044223018,1.10689,1806.8,1806.7,1.10688]
[1746044223223,4.125,1806.9,1806.5,5.97544]
[1746044223420,1.10693,1806.7,1806.6,1.10694]
[1746044223621,5.23185,1806.9,1806.8,1.10687]
[1746044223924,1.10688,1806.8,1806.7,1.10688]
[1746044224324,6.2581,1806.9,1806.8,1.10687]
[1746044224717,4.31457,1807.0,1806.9,1.10681]
[1746044225020,4.31455,1807.0,1806.9,1.10681]
[1746044225226,3.23983,1807.1,1807.0,1.10675]
[1746044225719,1.10667,1807.2,1807.1,1.10669]
[1746044225920,1.10677,1807.0,1806.9,1.10677]
[1746044226121,1.10681,1806.9,1806.8,1.10682]
[1746044226520,1.10687,1806.8,1806.7,3.2078]
[1746044226722,1.10699,1806.6,1806.5,3.2078]
[1746044227124,8.2078,1806.6,1806.2,1.10722]
[1746044227328,2.2096,1806.5,1806.2,1.10722]
[1746044227513,1.10718,1806.3,1806.2,1.10722]
[1746044227923,3.2078,1806.4,1806.2,1.10722]
[1746044227924,4.31496,1806.4,1806.2,1.10722]
[1746044228218,2.2096,1806.3,1806.0,7.4288]
[1746044228419,1.10727,1806.2,1806.0,7.4288]
[1746044228626,2.2096,1806.3,1806.2,1.10724]
[1746044228826,1.10724,1806.2,1806.1,1.10725]
[1746044229128,1.10736,1806.0,1805.9,40.8]
[1746044229315,1.10736,1806.0,1805.9,41.90742]
[1746044229519,1.10736,1806.0,1805.9,40.8]
[1746044229723,2.1749,1806.1,1805.9,40.8]
[1746044229918,1.10728,1806.2,1805.9,40.8]
[1746044230127,2.1749,1806.3,1805.9,40.8]
[1746044230327,3.2078,1806.2,1805.9,41.90738]
[1746044230528,1.10736,1806.0,1805.9,41.90738]
[1746044230733,1.10736,1806.0,1805.9,40.8]
[1746044231323,1.10748,1805.8,1805.7,3.2078]
[1746044231929,1.1076,1805.6,1805.5,41.90767]
[1746044232231,1.1076,1805.6,1805.5,40.8]
[1746044232431,1.10772,1805.5,1805.4,1.10772]
[1746044233126,3.34327,1805.7,1805.6,1.1076]
[1746044233330,2.2357,1805.7,1805.6,1.1076]
[1746044233930,5.23244,1805.9,1805.8,1.10743]
[1746044234131,7.46814,1805.9,1805.8,1.10743]
[1746044234429,6.3607,1805.9,1805.8,1.10743]
[1746044234619,7.46812,1805.9,1805.8,1.10743]
[1746044234930,7.46814,1805.9,1805.8,1.10748]
[1746044235136,7.46818,1805.9,1805.8,1.10748]
[1746044235431,1.1075,1805.8,1805.7,1.10749]
[1746044235630,3.21833,1805.8,1805.6,3.37356]
[1746044235823,2.1108,1805.8,1805.7,1.10754]
[1746044236335,5.3186,1805.8,1805.5,45.11544]
[1746044236630,5.3186,1805.8,1805.4,5.03532]
[1746044236826,5.3186,1805.8,1805.5,2.76917]
[1746044237030,5.3186,1805.8,1805.7,1.10754]
[1746044237331,8.4342,1806.0,1805.9,1.10742]
[1746044237532,7.3268,1806.0,1805.6,40.8]
[1746044237723,7.3268,1806.0,1805.7,1.10753]
[1746044237724,1.10753,1805.8,1805.7,1.10753]
[1746044237921,1.10746,1805.9,1805.8,1.10745]
[1746044238736,3.28456,1805.9,1805.8,1.10745]
[1746044239031,1.10752,1805.8,1805.7,1.1075]
[1746044239232,1.10754,1805.7,1805.6,41.90755]
[1746044239429,1.1076,1805.6,1805.5,4.31543]
[1746044240826,1.10759,1805.7,1805.6,1.10757]
[1746044241427,1.1076,1805.6,1805.5,4.31542]
[1746044241829,1.10759,1805.7,1805.6,1.10756]
[1746044242033,3.33949,1805.7,1805.6,1.10756]
[1746044242333,2.2319,1805.7,1805.6,1.10756]
[1746044242533,3.33944,1805.7,1805.6,3.24246]
[1746044242733,2.2319,1805.7,1805.6,3.24246]
[1746044242933,3.33944,1805.7,1805.6,3.24246]
[1746044243128,3.33944,1805.7,1805.6,1.10756]
[1746044243435,1.10771,1805.5,1805.4,1.10767]
[1746044243732,1.10783,1805.3,1805.2,1.10777]
[1746044244127,1.10785,1805.2,1805.1,47.30636]
[1746044244335,5.02081,1805.4,1804.8,2.7702]
[1746044244336,1.10796,1805.1,1804.8,2.7702]
[1746044244529,1.10796,1805.1,1805.0,1.10794]
[1746044244730,1.10796,1805.1,1805.0,41.90794]
[1746044245231,3.3593,1805.2,1805.1,1.10791]
[1746044245830,1.10797,1805.0,1804.9,44.0078]
[1746044246023,5.02116,1805.2,1804.8,2.1907]
[1746044246024,1.10803,1804.9,1804.8,2.1907]
[1746044246234,1.10799,1805.0,1804.9,1.10799]
[1746044246528,4.12,1805.1,1804.8,2.1907]
[1746044246529,4.12,1805.1,1805.0,1.10797]
[1746044246738,7.43941,1805.1,1805.0,1.10797]
[1746044246934,1.10798,1805.0,1804.9,1.108]
[1746044247131,2.2115,1805.0,1804.8,42.9907]
[1746044247332,2.2115,1805.0,1804.9,1.10803]
[1746044247736,4.12,1805.1,1805.0,1.10797]
[1746044248242,7.43941,1805.1,1805.0,1.10797]
[1746044248633,6.3315,1805.1,1805.0,1.10797]
[1746044250033,7.44971,1805.5,1805.4,1.10773]
[1746044250236,1.10773,1805.4,1805.3,3.33284]
[1746044250439,3.41953,1805.4,1805.3,3.33284]
[1746044250742,3.41953,1805.4,1805.3,2.2251]
[1746044250948,1.10779,1805.3,1805.2,1.10781]
[1746044251242,3.41959,1805.3,1805.2,1.10781]
[1746044251540,2.3118,1805.3,1805.2,1.10781]
[1746044252044,2.3118,1805.3,1805.2,4.31561]
[1746044252344,2.3118,1805.3,1805.2,1.10781]
[1746044252645,3.41959,1805.3,1805.2,1.10781]
[1746044252844,2.3118,1805.3,1805.2,1.10781]
[1746044253244,3.41959,1805.3,1805.2,1.10781]
[1746044253750,2.3118,1805.3,1805.2,1.10781]
[1746044253954,6.342,1805.5,1805.1,2.2251]
[1746044254254,4.12,1805.5,1805.4,1.10773]
[1746044255546,9.4623,1805.9,1805.8,1.10748]
[1746044255747,10.56975,1805.9,1805.8,1.10748]
[1746044255944,9.4623,1805.9,1805.5,2.2468]
[1746044256144,1.1076,1805.6,1805.5,2.2468]
[1746044256353,1.1076,1805.6,1805.5,1.10767]
[1746044256554,1.10765,1805.6,1805.5,1.10765]
[1746044256857,1.10767,1805.5,1805.4,3.2078]
[1746044257247,1.10767,1805.5,1805.4,4.31553]
[1746044257765,1.10767,1805.5,1805.4,3.2078]
[1746044258459,1.10767,1805.5,1805.4,4.31553]
[1746044258956,5.22767,1805.5,1805.4,3.2078]
[1746044259155,5.22767,1805.5,1805.4,4.31553]
[1746044259457,10.22767,1805.5,1805.4,3.2078]
[1746044259758,5.22767,1805.5,1805.4,3.2078]
[1746044259958,5.22767,1805.5,1805.4,4.31553]
[1746044260361,4.12,1805.5,1805.4,4.31553]
[1746044260762,6.2463,1805.5,1805.4,1.10773]
[1746044261062,7.35397,1805.5,1805.4,1.10773]
[1746044263767,5.22767,1805.5,1805.4,1.10773]
[1746044263964,3.24031,1805.8,1805.7,1.10754]
[1746044264162,1.10758,1805.7,1805.6,1.10754]
[1746044264363,3.24038,1805.7,1805.6,1.10754]
[1746044264874,1.1076,1805.6,1805.5,3.34124]
[1746044265172,1.10779,1805.3,1805.2,4.3156]
[1746044265471,1.10777,1805.4,1805.3,1.10773]
[1746044265972,1.10779,1805.3,1805.2,4.31561]
[1746044266172,1.10791,1805.1,1805.0,6.48546]
[1746044266867,1.10791,1805.1,1805.0,3.2078]
[1746044267463,1.10803,1804.9,1804.8,44.0778]
[1746044267673,1.10816,1804.7,1804.5,3.2078]
[1746044267870,3.30104,1804.8,1804.7,1.10816]
[1746044268574,2.2062,1805.1,1804.6,43.0048]
[1746044268870,4.112,1805.0,1804.9,1.10798]
[1746044269567,4.112,1805.0,1804.9,3.31278]
[1746044269763,4.112,1805.0,1804.9,1.10798]
[1746044270259,5.22,1805.0,1804.9,1.10803]
[1746044270469,4.112,1805.0,1804.9,1.10803]
[1746044270861,2.1131,1805.2,1805.1,1.10791]
[1746044271666,1.10791,1805.1,1805.0,3.28625]
[1746044271866,2.1131,1805.2,1805.0,3.28625]
[1746044272369,2.1131,1805.2,1805.1,1.10791]
[1746044273473,4.112,1805.3,1805.2,1.10785]
[1746044274275,4.112,1805.3,1805.2,3.43795]
[1746044276477,6.2853,1805.3,1805.2,3.43795]
[1746044277584,4.112,1805.3,1805.2,3.43795]
[1746044278173,3.28317,1805.4,1805.3,1.10779]
[1746044279582,2.1754,1805.4,1805.3,1.10779]
[1746044280368,3.28313,1805.4,1805.3,1.10779]
[1746044280884,2.1754,1805.4,1805.3,1.10779]
[1746044281081,5.21963,1805.6,1805.5,1.10767]
[1746044281277,7.50873,1805.6,1805.5,1.10767]
[1746044281579,6.4011,1805.6,1805.5,1.10767]
[1746044281779,4.89842,1806.0,1805.8,1.10745]
[1746044281780,5.21948,1805.9,1805.8,1.10745]
[1746044281984,7.50858,1805.9,1805.8,1.10745]
[1746044282280,4.112,1805.9,1805.8,1.10745]
[1746044282480,2.1299,1806.3,1805.8,5.0]
[1746044282685,4.419,1806.3,1806.2,1.10724]
[1746044282892,5.52618,1806.3,1806.2,1.10724]
[1746044283186,5.52619,1806.3,1806.2,1.10724]
[1746044283388,12.85485378,1806.4,1806.3,1.10718]
[1746044283687,3.78e-06,1806.4,1806.3,50.08138]
[1746044283877,3.78e-06,1806.4,1806.3,55.08138]
[1746044284079,5.97470378,1807.0,1806.3,52.8022]
[1746044284287,1.10711,1806.4,1806.3,50.458]
[1746044284587,1.10711,1806.4,1806.3,3.828]
[1746044284786,1.10708,1806.5,1806.3,3.828]
[1746044284985,2.2087,1806.4,1806.3,4.93513]
[1746044285286,6.342,1806.7,1806.2,46.77587]
[1746044285287,3.33697,1806.7,1806.2,46.77587]
[1746044285483,4.4387,1806.7,1806.4,1.10709]
[1746044285690,1.1071,1806.5,1806.3,3.45134]
[1746044285880,2.2087,1806.4,1806.3,1.10714]